bitfinex-derivatives/quotes_BTCF0:USTF0_20250121
["timestamp","ask_amount","ask_price","bid_price","bid_amount"]
[1737451853430,0.54701907,102410.0,102400.0,0.53102606]
[1737451853627,0.480379,102410.0,102400.0,0.57991006]
[1737451853835,0.409677,102420.0,102410.0,0.048879]
[1737451854140,0.119577,102420.0,102410.0,0.11551907]
[1737451854436,0.119577,102420.0,102410.0,0.16354178]
[1737451854630,0.119577,102420.0,102410.0,0.47927257]
[1737451854631,0.23672488,102420.0,102410.0,0.47927257]
[1737451854939,0.59752488,102420.0,102410.0,0.47927257]
[1737451856630,0.47794788,102420.0,102410.0,0.47927257]
[1737451856830,0.11714788,102420.0,102410.0,0.57691451]
[1737451857034,0.11714788,102420.0,102410.0,0.93771451]
[1737451857433,0.11714788,102420.0,102410.0,0.62198372]
[1737451857634,0.11714788,102420.0,102410.0,0.26118372]
[1737451857836,0.07086508,102430.0,102420.0,0.048874]
[1737451858031,0.07086508,102430.0,102420.0,0.16353678]
[1737451858342,0.00146508,102430.0,102420.0,0.16353678]
[1737451858544,0.00146508,102430.0,102420.0,0.26117872]
[1737451859241,0.4281,102450.0,102430.0,0.048869]
[1737451859537,0.47696,102450.0,102440.0,0.11550507]
[1737451859733,0.47696,102450.0,102440.0,0.16352778]
[1737451859934,0.11616,102450.0,102440.0,0.16352778]
[1737451860137,0.2917855,102450.0,102440.0,0.16352778]
[1737451860346,0.2917855,102450.0,102440.0,0.19450582]
[1737451860644,0.2429255,102450.0,102440.0,0.29535087]
[1737451860840,0.1756255,102450.0,102440.0,0.69890453]
[1737451862546,0.20489642,102470.0,102440.0,1.0655446]
[1737451862745,0.20489642,102470.0,102460.0,0.47629507]
[1737451862942,0.16909796,102470.0,102460.0,0.60127642]
[1737451863139,0.16909796,102470.0,102460.0,0.66857642]
[1737451863356,0.16909796,102470.0,102460.0,0.76618977]
[1737451864745,0.26297284,102470.0,102460.0,0.76618977]
[1737451865042,0.26297284,102470.0,102460.0,0.72343547]
[1737451865246,0.26297284,102470.0,102460.0,0.62259106]
[1737451865439,0.26297284,102470.0,102460.0,0.64120842]
[1737451865747,0.26297284,102470.0,102460.0,0.74719741]
[1737451865937,0.26297284,102470.0,102460.0,0.81929741]
[1737451866360,0.26297284,102470.0,102460.0,0.82956354]
[1737451867950,0.26297284,102470.0,102460.0,0.86376788]
[1737451868848,0.03,102490.0,102480.0,0.048845]
[1737451869050,0.03,102490.0,102480.0,0.17362623]
[1737451869537,0.03,102490.0,102480.0,0.5072393]
[1737451869738,0.03,102490.0,102470.0,0.48558123]
[1737451869739,0.51558123,102490.0,102470.0,0.048849]
[1737451870048,0.409645,102480.0,102470.0,0.14642425]
[1737451870345,0.477645,102480.0,102470.0,0.14642425]
[1737451870748,0.477645,102480.0,102470.0,0.09757525]
[1737451871050,0.04885,102470.0,102460.0,0.2945927]
[1737451871344,0.67523123,102470.0,102460.0,0.1845927]
[1737451871552,0.55045,102470.0,102460.0,0.1845927]
[1737451871852,0.67523123,102470.0,102450.0,0.34868647]
[1737451872047,0.53443623,102460.0,102450.0,0.34868647]
[1737451872248,0.53443623,102460.0,102450.0,0.12738647]
[1737451872445,0.048865,102440.0,102430.0,7.817e-05]
[1737451872646,0.53444623,102440.0,102430.0,0.34596118]
[1737451872850,0.409665,102440.0,102430.0,0.34596118]
[1737451873546,0.89524623,102440.0,102430.0,0.34596118]
[1737451873750,0.770465,102440.0,102430.0,0.34596118]
[1737451874250,0.770465,102440.0,102430.0,0.39483018]
[1737451874445,0.7216,102440.0,102430.0,0.39483018]
[1737451874650,0.7216,102440.0,102430.0,0.49245306]
[1737451875047,0.770465,102440.0,102430.0,0.49245306]
[1737451875543,0.7216,102440.0,102430.0,0.49245306]
[1737451875749,0.3608,102450.0,102430.0,1.02690329]
[1737451876051,0.3608,102460.0,102450.0,0.04886]
[1737451876249,0.14609602,102460.0,102450.0,0.53444123]
[1737451876551,0.14609602,102460.0,102450.0,0.60624123]
[1737451876756,0.14609602,102460.0,102450.0,0.70386411]
[1737451877056,0.14609602,102460.0,102450.0,0.57908288]
[1737451877252,0.68053225,102460.0,102450.0,0.09762288]
[1737451877464,0.04886,102450.0,102440.0,0.121161]
[1737451877652,0.04886,102450.0,102430.0,0.12204717]
[1737451877653,0.3608,102450.0,102430.0,0.01047956]
[1737451877853,0.048865,102440.0,102430.0,0.04894617]
[1737451878162,0.048865,102440.0,102430.0,0.14655952]
[1737451878364,0.409665,102440.0,102430.0,0.09769152]
[1737451878550,0.409665,102440.0,102430.0,0.14656052]
[1737451879253,0.3608,102450.0,102440.0,0.048865]
[1737451879453,0.048861,102450.0,102440.0,0.048864]
[1737451879955,0.048861,102450.0,102440.0,0.14648688]
[1737451880250,0.048861,102450.0,102440.0,0.048864]
[1737451880657,0.68654726,102460.0,102450.0,0.04886]
[1737451882560,0.63769026,102460.0,102450.0,0.04886]
[1737451882854,0.63769026,102460.0,102450.0,0.14646382]
[1737451882855,0.20349026,102460.0,102450.0,0.14646382]
[1737451883259,0.20349026,102460.0,102450.0,0.63204505]
[1737451883660,0.20349026,102460.0,102450.0,0.50726382]
[1737451883861,0.20349026,102460.0,102450.0,0.63204505]
[1737451884458,0.20349026,102460.0,102450.0,0.50726382]
[1737451884964,0.20349026,102460.0,102450.0,0.14646382]
[1737451885154,0.20349026,102460.0,102450.0,0.09760382]
[1737451885155,0.62164634,102460.0,102450.0,0.09760382]
[1737451885361,0.04886,102450.0,102440.0,0.048864]
[1737451885657,0.3608,102450.0,102430.0,0.04894617]
[1737451885965,0.048865,102440.0,102430.0,0.04894617]
[1737451886160,0.409665,102440.0,102430.0,0.04894617]
[1737451887063,0.3608,102440.0,102430.0,0.14656905]
[1737451887270,0.409665,102440.0,102430.0,0.14656905]
[1737451887860,0.3608,102440.0,102430.0,0.14656905]
[1737451888262,0.458524,102450.0,102430.0,0.14656905]
[1737451888566,0.54573411,102450.0,102430.0,0.14656905]
[1737451888766,0.54573411,102450.0,102440.0,0.048865]
[1737451888767,0.49687111,102450.0,102440.0,0.048865]
[1737451889857,0.44801011,102450.0,102440.0,0.048865]
[1737451890063,0.44801011,102450.0,102440.0,0.14648311]
[1737451892267,0.32066523,102470.0,102440.0,0.63206434]
[1737451892564,0.01870955,102470.0,102460.0,0.770455]
[1737451893155,0.01870955,102470.0,102460.0,0.8680493]
[1737451895067,0.04886,102450.0,102440.0,0.409664]
[1737451895373,0.409658,102460.0,102450.0,0.04886]
[1737451895664,0.409658,102460.0,102440.0,0.409662]
[1737451895868,0.04886,102450.0,102440.0,0.409662]
[1737451896068,0.048865,102440.0,102430.0,0.48334617]
[1737451896459,0.048865,102440.0,102430.0,0.58094999]
[1737451896868,0.048865,102440.0,102430.0,0.86995895]
[1737451897367,0.481862,102450.0,102430.0,0.86995895]
[1737451897962,0.409665,102440.0,102430.0,0.38669095]
[1737451898168,0.53444623,102440.0,102430.0,0.28908713]
[1737451898357,0.409665,102440.0,102430.0,0.28908713]
[1737451898968,0.53444623,102440.0,102430.0,0.28908713]
[1737451899167,0.409665,102440.0,102430.0,0.28908713]
[1737451899866,0.53444623,102440.0,102430.0,0.28908713]
[1737451901375,0.53444623,102440.0,102430.0,7.817e-05]
[1737451902564,0.54470097,102440.0,102430.0,7.817e-05]
[1737451905475,0.47685217,102420.0,102410.0,0.22295132]
[1737451905782,0.9624334,102420.0,102410.0,0.17407332]
[1737451906982,0.9624334,102420.0,102410.0,0.17507332]
[1737451907784,0.9624334,102420.0,102410.0,0.17407332]
[1737451910281,0.9624334,102420.0,102390.0,0.40779396]
[1737451910282,0.048884,102400.0,102390.0,0.118785]
[1737451910481,0.409684,102400.0,102390.0,0.0699]
[1737451910782,0.048888,102390.0,102380.0,0.23321676]
[1737451911177,0.048888,102390.0,102380.0,0.33087777]
[1737451911884,0.048888,102390.0,102380.0,0.32069489]
[1737451913273,0.37117745,102400.0,102380.0,0.32169489]
[1737451913479,0.048885,102400.0,102390.0,0.048888]
[1737451913677,0.048885,102400.0,102390.0,0.117788]
[1737451914083,0.048885,102400.0,102390.0,0.21544901]
[1737451914581,0.048885,102400.0,102380.0,0.58383588]
[1737451914582,0.53446623,102400.0,102380.0,0.58383588]
[1737451914787,0.048888,102390.0,102380.0,0.04896256]
[1737451914980,0.53446923,102390.0,102380.0,0.09773057]
[1737451915176,0.53446923,102390.0,102380.0,6.956e-05]
[1737451915484,0.60566923,102390.0,102380.0,6.956e-05]
[1737451915687,0.409688,102390.0,102380.0,6.956e-05]
[1737451915880,0.409684,102400.0,102390.0,0.048888]
[1737451916081,0.048884,102400.0,102390.0,0.048888]
[1737451916488,0.048888,102400.0,102390.0,0.09767055]
[1737451917281,0.048888,102400.0,102390.0,0.14655855]
[1737451919893,0.17366923,102400.0,102390.0,0.14655855]
[1737451920383,0.048888,102390.0,102380.0,0.40976056]
[1737451921087,0.17366923,102390.0,102380.0,6.956e-05]
[1737451921387,0.6057474,102390.0,102380.0,6.956e-05]
[1737451922294,0.6788474,102390.0,102380.0,6.956e-05]
[1737451922588,0.6788474,102390.0,102380.0,0.00106956]
[1737451922784,0.048893,102380.0,102370.0,0.00146526]
[1737451922988,0.60397423,102380.0,102370.0,0.00146526]
[1737451923691,0.479193,102380.0,102370.0,0.00146526]
[1737451923881,0.048893,102380.0,102370.0,0.41116326]
[1737451924086,0.049893,102380.0,102370.0,0.41416326]
[1737451924490,0.001,102380.0,102370.0,0.51184335]
[1737451924888,0.050893,102380.0,102370.0,0.51184335]
[1737451925190,0.050893,102380.0,102370.0,0.00446526]
[1737451925191,0.53647423,102380.0,102370.0,0.00446526]
[1737451925395,0.53547423,102380.0,102370.0,0.00446526]
[1737451925898,0.53547423,102380.0,102370.0,0.00146526]
[1737451926485,0.53547423,102380.0,102350.0,0.59847908]
[1737451926486,0.048903,102360.0,102350.0,0.59847908]
[1737451926689,0.409703,102360.0,102350.0,0.59847908]
[1737451927500,0.048903,102360.0,102350.0,0.69617826]
[1737451927702,0.049903,102360.0,102350.0,0.69717826]
[1737451927998,0.050903,102360.0,102350.0,0.69717826]
[1737451929901,0.050903,102360.0,102350.0,0.29100718]
[1737451930293,0.17568423,102360.0,102350.0,0.17199918]
[1737451930795,0.411703,102360.0,102350.0,0.22090718]
[1737451930993,0.050903,102360.0,102350.0,0.22090718]
[1737451931193,0.002,102360.0,102350.0,0.70648841]
[1737451931399,0.002,102360.0,102350.0,0.34568841]
[1737451931597,0.050903,102360.0,102350.0,0.22090718]
[1737451931795,0.17568423,102360.0,102350.0,0.17199918]
[1737451932699,0.53648423,102360.0,102350.0,0.17199918]
[1737451933603,0.53648423,102360.0,102350.0,0.09869918]
[1737451933998,0.411703,102360.0,102350.0,0.09869918]
[1737451934304,0.050903,102360.0,102350.0,0.14760718]
[1737451935101,0.002,102360.0,102350.0,0.14760718]
[1737451935406,0.050903,102360.0,102350.0,0.14760718]
[1737451935905,0.049903,102360.0,102350.0,0.14760718]
[1737451936100,0.050903,102360.0,102350.0,0.14860718]
[1737451936615,0.049903,102360.0,102350.0,0.14860718]
[1737451936905,0.26362664,102390.0,102360.0,0.048903]
[1737451937109,0.19452664,102390.0,102380.0,0.048893]
[1737451937400,0.14563564,102390.0,102380.0,0.5686982]
[1737451937606,0.17480736,102390.0,102380.0,0.66639738]
[1737451937901,0.06666932,102400.0,102380.0,0.45849918]
[1737451938099,0.47635732,102390.0,102380.0,0.14562252]
[1737451938300,0.048908,102350.0,102340.0,0.1843327]
[1737451938506,0.47637732,102350.0,102340.0,0.17407332]
[1737451938692,0.47637732,102350.0,102340.0,0.27174387]
[1737451938895,0.47644688,102350.0,102340.0,0.27174387]
[1737451939406,0.47744688,102350.0,102340.0,0.27174387]
[1737451939592,0.47744688,102350.0,102340.0,0.17407332]
[1737451939593,0.47844688,102350.0,102340.0,0.17407332]
[1737451939793,0.89774957,102350.0,102340.0,0.17407332]
[1737451940893,0.89674957,102350.0,102340.0,0.17407332]
[1737451941901,0.96334957,102350.0,102340.0,0.17407332]
[1737451942199,0.83817756,102350.0,102340.0,0.17407332]
[1737451942406,0.83817756,102350.0,102340.0,0.22298532]
[1737451942597,0.11657756,102350.0,102340.0,0.22298532]
[1737451942797,0.41077756,102350.0,102340.0,0.22298532]
[1737451942995,0.00106956,102350.0,102340.0,0.14662073]
[1737451943198,0.00106956,102350.0,102340.0,0.63259274]
[1737451943395,0.00106956,102350.0,102340.0,0.50742073]
[1737451943804,0.00106956,102350.0,102340.0,0.55540481]
[1737451945109,6.956e-05,102350.0,102340.0,0.55540481]
[1737451945410,0.00106956,102350.0,102340.0,0.55540481]
[1737451945800,0.04997756,102350.0,102340.0,0.55540481]
[1737451946515,0.04997756,102350.0,102340.0,0.68149405]
[1737451947310,0.00106956,102350.0,102340.0,0.68149405]
[1737451947908,0.00106956,102350.0,102340.0,0.72951546]
[1737451948612,0.04997756,102350.0,102340.0,0.72951546]
[1737451948804,0.04997756,102350.0,102340.0,0.68149405]
[1737451949613,0.04897756,102350.0,102340.0,0.68149405]
[1737451949911,0.00106956,102350.0,102340.0,0.72953088]
[1737451950109,0.00106956,102350.0,102340.0,0.86903088]
[1737451950708,0.00106956,102350.0,102340.0,0.99420289]
[1737451950903,0.26584704,102380.0,102370.0,0.048898]
[1737451951108,0.05036128,102380.0,102370.0,0.048898]
[1737451951303,0.00146628,102380.0,102370.0,0.048898]
[1737451951609,0.048884,102400.0,102380.0,0.048893]
[1737451951802,0.84733861,102410.0,102400.0,0.048884]
[1737451952312,2.34733861,102410.0,102400.0,0.048884]
[1737451952509,2.47251062,102410.0,102400.0,0.048884]
[1737451952706,2.34733861,102410.0,102400.0,0.048884]
[1737451953511,0.048884,102400.0,102390.0,0.44390721]
[1737451953818,0.048884,102400.0,102390.0,0.50733748]
[1737451954304,0.17405601,102400.0,102390.0,0.50733748]
[1737451954512,0.048884,102400.0,102390.0,0.50733748]
[1737451955312,0.409684,102400.0,102390.0,0.14653748]
[1737451957008,0.53485601,102400.0,102390.0,0.048886]
[1737451957420,1.5,102390.0,102380.0,0.76697108]
[1737451957716,1.548888,102390.0,102380.0,0.91352309]
[1737451957915,0.048888,102390.0,102380.0,0.91352309]
[1737451958510,1.548888,102390.0,102380.0,0.91352309]
[1737451958914,1.5,102390.0,102380.0,0.91352309]
[1737451959315,0.11682725,102410.0,102380.0,1.0386951]
[1737451959512,0.11682725,102410.0,102400.0,0.048884]
[1737451959909,0.11682725,102410.0,102400.0,0.53485601]
[1737451960219,0.11682725,102410.0,102400.0,0.69992656]
[1737451960425,0.32098153,102420.0,102400.0,1.00002193]
[1737451960610,0.32098153,102420.0,102410.0,0.53485101]
[1737451960916,0.32098153,102420.0,102410.0,0.61701587]
[1737451961118,0.43765761,102440.0,102410.0,0.88279418]
[1737451961419,0.33053826,102450.0,102440.0,0.048865]
[1737451961420,0.26343826,102450.0,102440.0,0.048865]
[1737451961606,0.19582691,102450.0,102440.0,0.53483701]
[1737451961806,0.19582691,102450.0,102440.0,0.83483701]
[1737451962005,0.12522691,102450.0,102440.0,0.93247895]
[1737451962209,0.12522691,102450.0,102440.0,0.98032077]
[1737451962420,0.12022691,102450.0,102440.0,0.93247895]
[1737451962620,0.12022691,102450.0,102440.0,0.98023911]
[1737451962920,0.12022691,102450.0,102440.0,0.68023911]
[1737451963310,0.12022691,102450.0,102440.0,0.93247895]
[1737451963519,0.02113791,102450.0,102440.0,0.93247895]
[1737451963817,0.02113791,102450.0,102440.0,0.98016521]
[1737451964220,0.078841,102490.0,102470.0,0.048849]
[1737451964422,0.078841,102490.0,102470.0,0.409649]
[1737451964816,0.078841,102490.0,102470.0,0.50726235]
[1737451966313,0.048845,102480.0,102470.0,0.50726235]
[1737451967015,0.078842,102490.0,102470.0,0.50726235]
[1737451967217,0.078842,102490.0,102470.0,0.63243236]
[1737451967414,1.578842,102490.0,102480.0,0.048845]
[1737451967729,0.078842,102490.0,102480.0,0.048845]
[1737451968116,0.078842,102490.0,102480.0,0.14642977]
[1737451969022,0.03,102490.0,102480.0,0.14642977]
[1737451970414,0.03,102490.0,102480.0,0.63240178]
[1737451970720,0.1711,102500.0,102490.0,0.048841]
[1737451970926,0.1711,102500.0,102490.0,0.078841]
[1737451971327,0.1711,102500.0,102490.0,0.17640673]
[1737451972722,0.1711,102500.0,102470.0,0.70900352]
[1737451972723,0.65707201,102500.0,102470.0,0.17418451]
[1737451972928,0.53481701,102480.0,102470.0,0.17418451]
[1737451973121,0.04885,102470.0,102460.0,0.23209776]
[1737451973321,0.53482201,102470.0,102460.0,0.23209776]
[1737451973520,0.048855,102460.0,102450.0,0.29047292]
[1737451973823,0.409655,102460.0,102450.0,0.33786896]
[1737451974022,0.40972447,102460.0,102450.0,0.28900896]
[1737451974326,0.04886,102450.0,102440.0,0.34721944]
[1737451974526,0.04886,102450.0,102430.0,0.048868]
[1737451974527,0.048865,102440.0,102430.0,0.048868]
[1737451974725,0.12517201,102440.0,102430.0,0.048868]
[1737451975031,0.048865,102440.0,102430.0,0.048868]
[1737451975235,0.409665,102440.0,102430.0,0.048868]
[1737451975433,0.53483701,102440.0,102420.0,0.36086921]
[1737451975618,0.048869,102430.0,102420.0,0.40974121]
[1737451975825,0.409669,102430.0,102420.0,0.04894121]
[1737451976435,0.58579274,102430.0,102420.0,6.921e-05]
[1737451976727,0.58579274,102430.0,102420.0,1e-08]
[1737451976728,0.58589334,102430.0,102420.0,1e-08]
[1737451976932,0.4097696,102430.0,102420.0,0.04887401]
[1737451977123,0.34058637,102430.0,102420.0,0.04887401]
[1737451977328,0.0001006,102430.0,102420.0,0.14650642]
[1737451977830,0.0001006,102430.0,102420.0,0.50730642]
[1737451978135,0.0001006,102430.0,102420.0,0.14650642]
[1737451978325,0.0001006,102430.0,102420.0,0.50730642]
[1737451980448,0.00146467,102480.0,102460.0,0.048855]
[1737451980646,0.00146467,102480.0,102470.0,0.40965]
[1737451981144,0.05030967,102480.0,102470.0,0.50728241]
[1737451981447,0.05038946,102480.0,102470.0,0.50728241]
[1737451982750,0.04885,102470.0,102460.0,0.048854]
[1737451983042,0.36234446,102480.0,102460.0,0.14643877]
[1737451983241,0.04885,102470.0,102460.0,0.14643877]
[1737451983443,0.048855,102460.0,102450.0,0.409658]
[1737451983746,0.048855,102460.0,102450.0,0.5072523]
[1737451984745,0.048855,102460.0,102440.0,0.3608]
[1737451984951,0.048865,102440.0,102430.0,0.41113318]
[1737451985343,0.048861,102450.0,102440.0,0.048865]
[1737451985648,0.04886,102450.0,102440.0,0.409663]
[1737451985953,0.68142374,102460.0,102440.0,0.3608]
[1737451986137,0.554157,102460.0,102450.0,0.04886]
[1737451986645,0.119757,102460.0,102450.0,0.40966]
[1737451986848,0.409651,102470.0,102460.0,0.048855]
[1737451987750,0.55609146,102480.0,102470.0,0.04885]
[1737451988135,0.048855,102460.0,102450.0,0.409659]
[1737451988335,0.409652,102470.0,102460.0,0.048855]
[1737451988542,0.409652,102470.0,102450.0,0.3608]
[1737451988754,0.048855,102460.0,102450.0,0.409658]
[1737451989545,0.048855,102460.0,102450.0,0.048858]
[1737451990137,0.22497874,102460.0,102450.0,0.048858]
[1737451991954,0.22497874,102460.0,102430.0,0.41113218]
[1737451991955,0.048865,102440.0,102430.0,0.41113218]
[1737451992141,0.04894479,102440.0,102430.0,0.41113218]
[1737451992947,0.04894479,102440.0,102430.0,0.508736]
[1737451994647,0.04894479,102440.0,102430.0,0.147936]
[1737451994851,0.04894479,102440.0,102430.0,0.508736]
[1737451995952,0.04894479,102440.0,102430.0,0.459868]
[1737451997352,0.04894479,102440.0,102430.0,0.00146418]
[1737451997751,0.17388415,102440.0,102430.0,0.00146418]
[1737451997955,0.048869,102430.0,102420.0,1e-08]
[1737451998256,0.409669,102430.0,102420.0,1e-08]
[1737451998448,0.409669,102430.0,102420.0,0.50730642]
[1737451998449,0.048869,102430.0,102420.0,0.50730642]
[1737451998651,0.048869,102430.0,102420.0,0.14650642]
[1737451998852,0.048869,102430.0,102420.0,0.50730642]
[1737451999048,0.48581915,102440.0,102420.0,0.50730642]
[1737451999049,7.979e-05,102440.0,102420.0,0.50730642]
[1737451999247,0.048869,102430.0,102420.0,0.50730342]
[1737451999443,0.17380836,102430.0,102420.0,0.45843242]
[1737451999648,0.17380836,102430.0,102420.0,0.36080001]
[1737451999948,0.17380836,102430.0,102420.0,0.36180001]
[1737452000153,0.17380836,102430.0,102420.0,0.41067401]
[1737452000350,0.048869,102430.0,102420.0,0.50830642]
[1737452000756,0.17380836,102430.0,102420.0,0.41067401]
[1737452001258,0.048869,102430.0,102420.0,0.41067401]
[1737452001648,0.17380836,102430.0,102420.0,0.04987401]
[1737452002258,0.17380836,102430.0,102420.0,0.41067401]
[1737452003159,0.048869,102430.0,102420.0,0.41067401]
[1737452003960,0.048869,102430.0,102420.0,0.04987401]
[1737452004461,0.048869,102430.0,102420.0,0.41067401]
[1737452004759,0.048869,102430.0,102420.0,0.04987401]
[1737452005462,0.048869,102430.0,102420.0,0.00100001]
[1737452005757,0.53460836,102430.0,102420.0,0.00100001]
[1737452007358,0.17380836,102430.0,102420.0,0.04987401]
[1737452007557,0.048869,102430.0,102420.0,0.04987401]
[1737452007761,0.048869,102430.0,102420.0,0.14750642]
[1737452008547,0.048869,102430.0,102420.0,0.04987401]
[1737452008752,0.17380836,102430.0,102420.0,0.00100001]
[1737452009353,0.048869,102430.0,102420.0,0.14750642]
[1737452009657,0.048869,102430.0,102420.0,0.28440642]
[1737452010151,0.04894679,102440.0,102430.0,0.048869]
[1737452010357,0.17388615,102440.0,102430.0,0.048869]
[1737452010849,0.04894679,102440.0,102430.0,0.048869]
[1737452011251,0.04894679,102440.0,102430.0,0.14650141]
[1737452012160,0.17388615,102440.0,102430.0,0.09763241]
[1737452012465,0.048869,102430.0,102420.0,0.61677201]
[1737452012860,0.048869,102430.0,102420.0,0.71439489]
[1737452013766,0.17380836,102430.0,102420.0,0.71539489]
[1737452013964,0.17380836,102430.0,102420.0,0.64519489]
[1737452014269,0.048869,102430.0,102420.0,0.64519689]
[1737452015957,0.048869,102430.0,102420.0,0.59632289]
[1737452016864,0.409669,102430.0,102420.0,0.13790001]
[1737452017063,0.53460836,102430.0,102420.0,0.00100001]
[1737452019272,0.409669,102430.0,102420.0,0.00100001]
[1737452019476,0.409669,102430.0,102420.0,0.04987401]
[1737452019770,0.409669,102430.0,102420.0,0.11797401]
[1737452020279,0.17380836,102430.0,102420.0,0.11797401]
[1737452020871,0.048869,102430.0,102420.0,0.11797401]
[1737452021261,0.17380836,102430.0,102420.0,0.06910001]
[1737452021863,0.18372446,102430.0,102420.0,0.06910001]
[1737452022670,0.18372446,102430.0,102420.0,0.11797401]
[1737452023068,0.18372446,102430.0,102420.0,0.06910001]
[1737452023270,0.54452446,102430.0,102420.0,0.00100001]
[1737452023562,0.048879,102410.0,102400.0,1.06964952]
[1737452023760,0.17381836,102410.0,102400.0,1.11779349]
[1737452023969,0.048879,102410.0,102400.0,1.2643099]
[1737452024373,0.048879,102410.0,102400.0,1.21616593]
[1737452024575,0.048879,102410.0,102400.0,1.26432017]
[1737452025067,0.049879,102410.0,102400.0,1.26432017]
[1737452025264,0.050879,102410.0,102400.0,1.26732017]
[1737452025673,0.050879,102410.0,102400.0,1.21916593]
[1737452027775,0.050879,102410.0,102400.0,0.58391641]
[1737452027776,0.16787682,102410.0,102400.0,0.58391641]
[1737452029074,0.11899782,102410.0,102400.0,0.63207296]
[1737452029271,0.16787682,102410.0,102400.0,0.66629233]
[1737452029478,0.16787682,102410.0,102400.0,0.66629042]
[1737452029977,0.11899782,102410.0,102400.0,0.66629042]
[1737452031076,0.03100864,102420.0,102410.0,0.048879]
[1737452031271,0.17390517,102430.0,102420.0,0.048874]
[1737452031477,0.17390517,102430.0,102420.0,0.49204801]
[1737452031872,0.17390517,102430.0,102420.0,0.58969949]
[1737452032076,0.34771353,102430.0,102420.0,0.54082549]
[1737452032274,0.34771353,102430.0,102420.0,0.40895655]
[1737452033582,0.70851353,102430.0,102400.0,1.12150312]
[1737452033877,0.17381836,102410.0,102400.0,1.14181622]
[1737452034277,0.24851836,102410.0,102400.0,1.00996926]
[1737452034683,0.24851836,102410.0,102400.0,1.04718891]
[1737452035082,0.24951836,102410.0,102400.0,1.04918891]
[1737452035583,0.25051836,102410.0,102400.0,1.01496926]
[1737452035781,0.61131836,102410.0,102400.0,0.60600657]
[1737452035977,0.25051836,102410.0,102400.0,0.60600657]
[1737452036385,0.61139816,102410.0,102400.0,0.60600657]
[1737452037591,0.61139816,102410.0,102400.0,0.23803164]
[1737452038587,0.62147009,102410.0,102400.0,0.23803164]
[1737452040687,0.0509588,102410.0,102400.0,0.74536712]
[1737452040885,0.0020798,102410.0,102400.0,0.74536712]
[1737452041090,0.0020798,102410.0,102400.0,1.01090648]
[1737452041588,0.0020798,102410.0,102400.0,0.88596712]
[1737452041791,0.0020798,102410.0,102400.0,0.93414602]
[1737452041990,0.0509588,102410.0,102400.0,0.70111438]
[1737452042193,0.0509588,102410.0,102400.0,0.65293548]
[1737452042378,0.17589816,102410.0,102400.0,0.46345148]
[1737452042692,0.17589816,102410.0,102400.0,0.40001965]
[1737452042878,0.17589816,102410.0,102400.0,0.40001932]
[1737452043983,0.17589816,102410.0,102400.0,0.3658]
[1737452044285,0.31759816,102410.0,102400.0,0.3658]
[1737452045486,0.31759816,102410.0,102400.0,0.005]
[1737452045686,0.67839816,102410.0,102400.0,0.005]
[1737452045982,0.048884,102400.0,102390.0,0.23303164]
[1737452046195,0.17382336,102400.0,102390.0,0.33873119]
[1737452046387,0.17382336,102400.0,102390.0,0.69953119]
[1737452046578,0.17382336,102400.0,102390.0,0.33873119]
[1737452047274,0.17382336,102400.0,102390.0,0.29052852]
[1737452047576,0.048884,102400.0,102390.0,0.70021652]
[1737452047781,0.049884,102400.0,102390.0,0.70021652]
[1737452048387,0.89642336,102400.0,102390.0,0.29052852]
[1737452048580,1.02136272,102400.0,102380.0,0.34481784]
[1737452048780,0.53462736,102390.0,102380.0,0.09749606]
[1737452049083,0.53462736,102390.0,102360.0,0.15483614]
[1737452049084,0.048898,102370.0,102360.0,0.15483614]
[1737452049294,0.17383736,102370.0,102360.0,0.16880378]
[1737452049584,0.17383736,102370.0,102360.0,0.16936101]
[1737452049886,0.048898,102370.0,102360.0,0.16936101]
[1737452050182,0.53472954,102370.0,102360.0,0.0717]
[1737452050681,0.53472954,102370.0,102360.0,0.76729573]
[1737452052382,0.40979018,102370.0,102360.0,0.76729573]
[1737452053688,0.4199349,102370.0,102360.0,0.76729573]
[1737452054388,0.4199349,102370.0,102360.0,0.81619873]
[1737452054585,0.4199349,102370.0,102360.0,0.76729573]
[1737452055194,0.4199349,102370.0,102350.0,0.41116845]
[1737452055491,0.048903,102360.0,102350.0,0.50885809]
[1737452057185,0.049903,102360.0,102350.0,0.50885809]
[1737452057786,0.050903,102360.0,102350.0,0.50885809]
[1737452057988,0.050903,102360.0,102350.0,0.63379745]
[1737452058290,0.050903,102360.0,102350.0,0.99459745]
[1737452058492,0.050903,102360.0,102350.0,0.86965809]
[1737452061594,0.002,102360.0,102350.0,0.99459745]
[1737452061892,0.002,102360.0,102350.0,0.93636322]
[1737452063496,0.08741854,102380.0,102370.0,0.048898]
[1737452063801,0.03422756,102390.0,102380.0,0.048893]
[1737452063986,0.17390517,102400.0,102390.0,0.048888]
[1737452064295,0.00146505,102440.0,102400.0,0.04888]
[1737452064501,0.05033005,102440.0,102430.0,0.11557413]
[1737452064696,0.04894946,102440.0,102430.0,0.47637413]
[1737452064891,8.446e-05,102440.0,102430.0,0.54617413]
[1737452065200,8.446e-05,102440.0,102430.0,0.64383514]
[1737452065903,8.446e-05,102440.0,102430.0,0.57713001]
[1737452065904,0.04894846,102440.0,102430.0,0.57713001]
[1737452066211,0.04894846,102440.0,102430.0,0.52826101]
[1737452066504,0.048874,102420.0,102410.0,0.40978398]
[1737452066896,0.048874,102420.0,102410.0,0.50740686]
[1737452067698,0.050874,102420.0,102410.0,0.50740686]
[1737452068487,0.002,102420.0,102410.0,0.50740686]
[1737452068689,8.446e-05,102440.0,102430.0,0.048869]
[1737452068894,8.446e-05,102440.0,102430.0,0.913669]
[1737452069092,8.446e-05,102440.0,102430.0,1.03854244]
[1737452069302,8.446e-05,102440.0,102430.0,1.13618438]
[1737452069999,0.00308446,102440.0,102430.0,1.01131094]
[1737452070402,0.00508446,102440.0,102430.0,1.01131094]
[1737452070601,0.00508446,102440.0,102430.0,1.13618438]
[1737452071907,0.00208446,102440.0,102430.0,1.13618438]
[1737452072095,0.00308446,102440.0,102430.0,1.13618438]
[1737452073999,0.00308446,102440.0,102430.0,1.1463003]
[1737452074401,0.00308446,102440.0,102430.0,1.01131094]
[1737452074606,0.05194846,102440.0,102430.0,0.86811094]
[1737452076601,0.05194846,102440.0,102420.0,0.1282]
[1737452076602,0.048869,102430.0,102420.0,0.409673]
[1737452076796,0.120769,102430.0,102410.0,0.66357396]
[1737452077000,0.258669,102430.0,102410.0,0.71245096]
[1737452077202,0.258669,102430.0,102410.0,0.81007384]
[1737452077707,0.25466305,102430.0,102410.0,0.81007384]
[1737452078108,0.25566305,102430.0,102410.0,0.81007384]
[1737452078608,0.25666305,102430.0,102410.0,0.81007384]